bitfinex-derivatives/quotes_ETHF0:USTF0_20241023
["timestamp","ask_amount","ask_price","bid_price","bid_amount"]
[1729717203335,9.87725378,2516.9,2516.8,0.52212999]
[1729717203831,9.87725378,2516.9,2516.8,0.39774]
[1729717204032,9.87725378,2516.9,2516.8,0.52213296]
[1729717204537,9.87725378,2516.9,2516.8,0.52213338]
[1729717204538,9.47952378,2516.9,2516.8,0.52213338]
[1729717204842,9.47952378,2516.9,2516.8,0.52213183]
[1729717206037,9.87725378,2516.9,2516.8,0.39774]
[1729717206236,9.47952378,2516.9,2516.8,0.39774]
[1729717206642,9.87725378,2516.9,2516.8,0.39774]
[1729717207050,9.47952378,2516.9,2516.8,0.39774]
[1729717207445,9.87725378,2516.9,2516.8,0.39774]
[1729717208733,6.66945378,2516.9,2516.8,0.39774]
[1729717210146,4.84172378,2516.9,2516.8,1.82774]
[1729717211038,6.27172378,2516.9,2516.8,0.39774]
[1729717211955,4.84172378,2516.9,2516.8,1.95212957]
[1729717212546,4.84172378,2516.9,2516.8,0.52212894]
[1729717212547,6.27172378,2516.9,2516.8,0.52212894]
[1729717212742,4.44342378,2516.9,2516.8,1.95212894]
[1729717212946,4.44342378,2516.9,2516.8,5.15992894]
[1729717213246,5.84986031,2517.0,2516.9,0.39773]
[1729717213450,1.82771,2517.0,2516.9,0.39773]
[1729717213644,6.83984739,2517.0,2516.9,0.39773]
[1729717214435,6.83984739,2517.0,2516.7,0.8276]
[1729717214645,6.83984739,2517.0,2516.3,1.55552933]
[1729717214646,0.39781,2516.4,2516.3,1.03701955]
[1729717214839,1.82781,2516.4,2516.3,0.72128052]
[1729717215045,1.82781,2516.4,2516.3,0.12440789]
[1729717215543,1.82781,2516.4,2516.3,0.52222789]
[1729717216450,1.82781,2516.4,2516.3,0.72128606]
[1729717217645,1.82781,2516.4,2516.3,0.32346606]
[1729717217847,6.22958569,2516.4,2516.3,0.12440789]
[1729717218040,6.22958569,2516.4,2516.3,0.52222789]
[1729717218353,4.79958569,2516.4,2516.3,0.52222789]
[1729717218947,4.40177569,2516.4,2516.3,0.52222789]
[1729717220392,4.40177569,2516.4,2516.3,0.52223177]
[1729717220752,4.79958569,2516.4,2516.3,0.52223177]
[1729717222257,7.90958569,2516.4,2516.3,0.12441177]
[1729717224157,0.39782,2516.3,2516.2,0.39783]
[1729717224357,1.26902,2516.3,2516.2,0.52224817]
[1729717224563,5.84200177,2516.3,2516.2,0.52224817]
[1729717228361,9.41858177,2516.3,2516.0,1.03701955]
[1729717228657,0.39784,2516.2,2516.1,0.12442287]
[1729717229049,8.53856405,2516.2,2516.1,0.12442287]
[1729717229454,11.64856405,2516.2,2516.1,0.12442287]
[1729717231654,0.39785,2516.1,2516.0,0.39786]
[1729717231860,0.80105,2516.1,2516.0,0.52229077]
[1729717232053,5.39373922,2516.1,2516.0,0.52229077]
[1729717232656,5.39373922,2516.1,2516.0,0.12443077]
[1729717232879,5.39373922,2516.1,2516.0,0.52230077]
[1729717235168,0.39792,2515.8,2515.7,0.39791]
[1729717235362,3.11,2515.8,2515.6,3.60573]
[1729717235570,0.4207,2515.7,2515.6,0.39793]
[1729717235976,4.88979219,2515.7,2515.6,0.39793]
[1729717237368,5.31579219,2515.7,2515.6,0.39793]
[1729717238367,6.74579219,2515.7,2515.6,0.39793]
[1729717241269,7.14371219,2515.7,2515.6,0.39793]
[1729717241670,10.72099219,2515.7,2515.3,0.4315]
[1729717241871,1.82796,2515.4,2515.3,0.82946]
[1729717242273,5.86110281,2515.4,2515.3,0.82946]
[1729717243079,5.86110281,2515.4,2515.3,0.39796]
[1729717243299,6.25906281,2515.4,2515.3,0.39796]
[1729717243675,5.86110281,2515.4,2515.2,3.2078]
[1729717243977,0.398,2515.2,2515.1,1.2315]
[1729717244179,0.398,2515.2,2515.1,0.8335]
[1729717244180,1.828,2515.2,2515.1,0.8335]
[1729717244373,7.66441019,2515.2,2515.1,0.4359]
[1729717244777,7.66441019,2515.2,2515.1,0.83391]
[1729717245073,5.83641019,2515.2,2515.1,0.83391]
[1729717245273,6.23441019,2515.2,2515.1,0.83391]
[1729717245473,5.83641019,2515.2,2515.1,0.83391]
[1729717246683,4.40641019,2515.2,2515.1,0.83391]
[1729717246881,5.83641019,2515.2,2515.1,0.83391]
[1729717247983,0.39802,2515.1,2515.0,0.39801]
[1729717248287,7.9341377,2515.1,2515.0,0.39801]
[1729717250479,7.9341377,2515.1,2514.8,4.0361]
[1729717250677,7.9341377,2515.1,2514.7,0.4352]
[1729717250678,3.50804,2514.9,2514.5,3.2078]
[1729717250878,3.11,2514.6,2514.5,3.60591]
[1729717251086,3.11,2514.6,2514.5,4.01431]
[1729717251279,0.39817,2514.1,2513.5,5.75897933]
[1729717251480,3.11,2513.6,2513.4,0.39827]
[1729717251684,3.11,2513.6,2512.9,3.2078]
[1729717251685,3.11,2513.6,2513.0,0.4084]
[1729717251889,4.22112762,2513.5,2513.4,3.60608]
[1729717252185,4.22112762,2513.9,2513.8,0.3982]
[1729717252685,4.55185184,2513.9,2513.8,0.3982]
[1729717253084,4.55185184,2513.9,2513.8,0.39822]
[1729717260496,4.55185184,2513.9,2513.8,4.37582]
[1729717260692,3.2078,2514.0,2513.9,0.3982]
[1729717260894,3.2078,2514.0,2513.9,4.3758]
[1729717261093,3.2078,2514.4,2514.3,0.39814]
[1729717261394,7.69650618,2514.4,2514.3,0.39814]
[1729717262099,7.69650618,2514.4,2514.0,1.027]
[1729717262294,8.09463618,2514.4,2514.3,0.39814]
[1729717262486,7.69650618,2514.4,2514.3,0.39814]
[1729717262893,8.09462618,2514.4,2514.3,0.39814]
[1729717264100,7.69650618,2514.4,2514.3,0.39814]
[1729717265218,8.09462618,2514.4,2514.3,0.39814]
[1729717265393,7.69650618,2514.4,2514.3,0.39814]
[1729717265900,8.09462618,2514.4,2514.3,0.39814]
[1729717268199,4.88682618,2514.4,2514.3,0.39814]
[1729717269293,0.39814,2514.3,2514.2,0.79714]
[1729717269999,4.88683618,2514.4,2514.3,0.39814]
[1729717270597,0.39814,2514.3,2514.2,0.79714]
[1729717270806,4.48870618,2514.4,2514.2,0.399]
[1729717270996,4.48870618,2514.4,2514.3,0.39814]
[1729717270997,4.88683618,2514.4,2514.3,0.39814]
[1729717272100,4.48870618,2514.4,2514.3,0.39814]
[1729717272405,4.88682618,2514.4,2514.3,0.39814]
[1729717274900,0.39819,2514.0,2513.9,3.60599]
[1729717275207,0.39819,2514.0,2513.9,0.3982]
[1729717275208,8.05316726,2514.0,2513.9,0.3982]
[1729717275507,0.3982,2513.9,2513.8,2.65131]
[1729717275701,0.8133,2513.9,2513.8,2.65131]
[1729717275903,5.22311337,2513.9,2513.8,1.62731]
[1729717276104,5.22311337,2513.9,2513.8,0.4085]
[1729717276308,5.22311337,2513.9,2513.8,0.80672]
[1729717277100,5.62561337,2513.9,2513.8,0.80672]
[1729717278206,5.62561337,2513.9,2513.8,0.39822]
[1729717278747,0.39822,2513.8,2513.7,0.80902]
[1729717279110,5.62562337,2513.9,2513.8,0.39822]
[1729717281512,0.39823,2513.8,2513.7,0.39822]
[1729717282009,4.69883701,2513.8,2513.7,0.39822]
[1729717282305,0.39825,2513.7,2513.6,0.39824]
[1729717282503,0.39828,2513.5,2513.4,0.39826]
[1729717282699,0.39828,2513.4,2513.3,0.39829]
[1729717282906,1.26448,2513.4,2513.3,0.39829]
[1729717283106,0.8662,2513.4,2513.3,0.39829]
[1729717283903,1.26448,2513.4,2513.3,0.39829]
[1729717284108,0.8662,2513.4,2513.3,0.39829]
[1729717284609,3.2078,2513.6,2513.3,3.9784]
[1729717284801,0.4136,2513.7,2513.6,0.39825]
[1729717285206,4.81245978,2513.7,2513.6,0.39825]
[1729717285813,5.21068978,2513.7,2513.6,0.39825]
[1729717287817,4.81245978,2513.7,2513.6,0.39825]
[1729717289601,5.21068978,2513.7,2513.6,0.39825]
[1729717290304,6.64068978,2513.7,2513.6,0.39825]
[1729717292613,6.24245978,2513.7,2513.6,0.39825]
[1729717292808,4.81245978,2513.7,2513.6,0.39825]
[1729717293009,6.24245978,2513.7,2513.6,0.39825]
[1729717293410,6.24245978,2513.7,2513.6,0.5227991]
[1729717293613,6.64068978,2513.7,2513.6,1.9527991]
[1729717294024,6.64068978,2513.7,2513.6,0.5227991]
[1729717295116,6.24245978,2513.7,2513.6,0.5227991]
[1729717295719,6.64068978,2513.7,2513.6,0.5227991]
[1729717296620,6.24245978,2513.7,2513.6,0.5227991]
[1729717296821,6.64068978,2513.7,2513.6,0.52279913]
[1729717297021,6.64068978,2513.7,2513.6,0.39825]
[1729717297217,6.24245978,2513.7,2513.6,0.52279914]
[1729717298022,4.39885978,2513.7,2513.6,1.95279914]
[1729717298220,3.2078,2514.1,2514.0,0.39819]
[1729717298426,5.03597,2514.1,2514.0,0.39819]
[1729717298633,9.53137715,2514.1,2514.0,0.52272047]
[1729717299229,9.53137715,2514.1,2514.0,0.39819]
[1729717299427,9.53137715,2514.1,2514.0,0.52272072]
[1729717299929,9.13320715,2514.1,2514.0,0.52272072]
[1729717300125,9.13320715,2514.1,2514.0,1.38762072]
[1729717300326,9.13320715,2514.1,2514.0,1.26309]
[1729717300647,9.13320715,2514.1,2514.0,1.38762074]
[1729717301425,9.53137715,2514.1,2514.0,1.38762074]
[1729717301827,9.13320715,2514.1,2514.0,1.38762074]
[1729717302836,9.53137715,2514.1,2514.0,1.38762074]
[1729717303428,9.13320715,2514.1,2513.9,0.3982]
[1729717303634,0.3982,2513.9,2513.8,1.41921]
[1729717303829,1.8282,2513.9,2513.8,1.54374229]
[1729717304030,1.8282,2513.9,2513.8,0.12453229]
[1729717304320,1.8282,2513.9,2513.8,0.52275229]
[1729717304321,6.21150271,2513.9,2513.8,0.52275229]
[1729717304529,6.21150271,2513.9,2513.8,0.39822]
[1729717304835,0.39823,2513.8,2513.7,0.39823]
[1729717305133,6.60262773,2513.8,2513.7,0.52277106]
[1729717307334,6.60262773,2513.8,2513.7,0.39823]
[1729717308735,0.39828,2513.5,2513.4,0.39827]
[1729717308937,1.82828,2513.5,2513.4,0.52281955]
[1729717309233,6.15805215,2513.5,2513.4,0.52281955]
[1729717311137,5.75977215,2513.5,2513.4,0.52281955]
[1729717311330,5.75977215,2513.5,2513.4,0.39827]
[1729717311532,5.75977215,2513.5,2513.4,0.52282397]
[1729717311737,6.57364215,2513.5,2513.4,0.52282397]
[1729717312531,5.14364215,2513.5,2513.4,0.52282397]
[1729717312732,6.57364215,2513.5,2513.4,0.52282397]
[1729717313235,6.17537215,2513.5,2513.4,0.52282397]
[1729717313438,6.57364215,2513.5,2513.4,0.52282397]
[1729717313735,6.97384215,2513.5,2513.4,0.52282397]
[1729717314337,6.97384215,2513.5,2513.4,0.12455397]
[1729717314537,0.39828,2513.4,2513.3,0.39829]
[1729717314738,1.43,2513.4,2513.1,0.4188]
[1729717314935,1.43,2513.4,2513.0,1.43]
[1729717314936,1.43,2513.2,2513.0,1.43]
[1729717315152,1.43,2513.2,2513.1,1.23433]
[1729717315435,5.71031328,2513.2,2513.1,1.23433]
[1729717316433,4.28031328,2513.2,2513.1,1.23433]
[1729717321334,4.57422712,2513.3,2513.2,0.39831]
[1729717321534,0.419,2513.6,2513.2,0.99578]
[1729717321735,0.39827,2513.6,2513.5,0.39825]
[1729717322139,4.5818145,2513.6,2513.5,0.39825]
[1729717322844,4.1835445,2513.6,2513.5,1.23575]
[1729717323347,4.68671801,2513.7,2513.6,0.39823]
[1729717323647,0.39825,2513.7,2513.6,0.39823]
[1729717323838,4.69766226,2513.7,2513.6,0.39823]
[1729717324784,4.29941226,2513.7,2513.6,0.39823]
[1729717325760,4.00538,2514.1,2514.0,0.39819]
[1729717326246,8.4607315,2514.1,2514.0,0.39819]
[1729717327850,0.39819,2514.0,2513.9,1.6062]
[1729717328051,3.50819,2514.0,2513.9,0.12453415]
[1729717328246,3.50819,2514.0,2513.6,1.82144]
[1729717328247,0.39823,2513.7,2513.6,1.82144]
[1729717328449,0.39823,2513.7,2513.6,1.94598177]
[1729717328646,8.09049949,2513.7,2513.6,0.12454177]
[1729717328844,11.67066949,2513.7,2513.1,1.021]
[1729717329145,0.3983,2513.3,2513.2,0.12456299]
[1729717329454,4.58226949,2513.3,2512.8,1.41938]
[1729717329755,3.11,2513.1,2512.8,1.021]
[1729717329954,0.39835,2513.0,2512.9,0.12458221]
[1729717330154,5.31109557,2513.0,2512.9,0.12458221]
[1729717330443,0.39838,2512.8,2512.7,0.39839]
[1729717330650,0.39837,2512.9,2512.8,0.39838]
[1729717330850,0.39837,2512.9,2512.8,0.52296885]
[1729717331053,4.86269321,2512.9,2512.8,0.12458885]
[1729717331351,4.86269321,2512.9,2512.8,0.52296885]
[1729717332349,4.86269321,2512.9,2512.8,0.39838]
[1729717332541,4.86268321,2512.9,2512.8,0.12459066]
[1729717332742,4.86268321,2512.9,2512.8,0.52297066]
[1729717332973,4.86268321,2512.9,2512.8,0.39838]
[1729717333544,4.46432321,2512.9,2512.8,0.39838]
[1729717333745,4.46432321,2512.9,2512.8,0.52296751]
[1729717336257,4.46432321,2512.9,2512.8,0.52296391]
[1729717337443,4.46432321,2512.9,2512.8,0.39838]
[1729717338247,4.86268321,2512.9,2512.8,0.39838]
[1729717338643,4.46432321,2512.9,2512.6,1.2565]
[1729717338849,0.39839,2512.8,2512.7,0.39839]
[1729717339256,4.61780945,2512.8,2512.7,0.39839]
[1729717339967,4.21941945,2512.8,2512.7,0.39839]
[1729717340160,4.61779945,2512.8,2512.7,0.39839]
[1729717340348,4.79628711,2512.9,2512.8,0.39837]
[1729717340550,3.60617,2512.9,2512.8,0.39837]
[1729717340959,7.79691805,2512.9,2512.6,0.8321]
[1729717341162,0.39838,2512.8,2512.7,0.39838]
[1729717341658,4.98749805,2512.8,2512.7,0.39838]
[1729717341963,4.58911805,2512.8,2512.7,0.39838]
[1729717342257,4.98749805,2512.8,2512.7,0.39838]
[1729717343761,5.39079805,2512.8,2512.7,0.39838]
[1729717344158,4.99241805,2512.8,2512.7,0.39838]
[1729717345653,4.58911805,2512.8,2512.7,0.39838]
[1729717346060,0.79895,2513.0,2512.8,0.39838]
[1729717346061,4.35704777,2512.9,2512.8,0.39838]
[1729717346264,3.11,2512.9,2512.8,0.39838]
[1729717346560,7.46704777,2512.9,2512.8,0.39838]
[1729717351666,7.86540777,2512.9,2512.8,0.39838]
[1729717352967,7.46704777,2512.9,2512.8,0.39838]
[1729717353168,7.86540777,2512.9,2512.8,0.39838]
[1729717353366,7.86540777,2512.9,2512.6,1.2305]
[1729717353367,0.39839,2512.7,2512.6,1.2305]
[1729717353567,3.50839,2512.7,2512.6,0.82451]
[1729717353774,8.06591649,2512.7,2512.6,0.82451]
[1729717354260,0.39845,2512.4,2512.3,0.39844]
[1729717354507,0.39845,2512.4,2512.1,3.2078]
[1729717354508,0.39848,2512.2,2512.1,0.39847]
[1729717354667,0.39848,2512.2,2512.1,0.52308485]
[1729717355367,7.7652143,2512.2,2512.1,0.39847]
[1729717356171,7.3667343,2512.2,2512.0,0.843]
[1729717356370,0.39849,2512.1,2512.0,1.24149]
[1729717356768,4.40552259,2512.1,2512.0,1.24149]
[1729717356969,4.80401259,2512.1,2512.0,1.3661096]
[1729717357169,4.80401259,2512.1,2512.0,1.24149]
[1729717357864,4.40552259,2512.1,2512.0,1.24149]
[1729717359704,11.49632259,2512.1,2511.4,3.2078]
[1729717359879,11.49632259,2512.1,2511.7,0.39853]
[1729717359880,0.39854,2511.8,2511.7,0.39853]
[1729717360378,4.7962411,2511.8,2511.7,0.39853]
[1729717361076,7.9062411,2511.8,2511.7,0.39853]
[1729717361271,0.39858,2511.6,2511.5,0.39858]
[1729717361481,3.50858,2511.6,2511.5,0.39858]
[1729717361676,7.80952367,2511.6,2511.5,0.39858]
[1729717362589,7.41094367,2511.6,2511.5,0.39858]
[1729717362787,4.30094367,2511.6,2511.5,0.82158]
[1729717363179,4.54177984,2511.7,2511.6,0.39857]
[1729717363387,3.11,2511.8,2511.5,1.41946]
[1729717363583,3.11,2511.9,2511.5,1.41946]
[1729717363887,7.54888187,2511.9,2511.8,0.39854]
[1729717367189,7.94740187,2511.9,2511.8,0.39854]
[1729717367493,7.54888187,2511.9,2511.8,0.39854]
[1729717367792,7.94740187,2511.9,2511.8,0.39854]
[1729717367985,7.54888187,2511.9,2511.8,0.39854]
[1729717368390,4.43888187,2511.9,2511.8,0.39854]
[1729717368583,3.2078,2512.6,2511.8,3.9808]
[1729717368789,3.2078,2512.6,2512.5,0.39842]
[1729717368995,3.61,2512.9,2512.3,0.99614]
[1729717369190,7.60503472,2512.6,2512.3,0.99614]
[1729717369398,3.5471,2512.6,2512.5,0.39842]
[1729717369693,3.9496537,2512.6,2512.5,0.39842]
[1729717372089,4.3480637,2512.6,2512.5,0.39842]
[1729717372898,3.9496537,2512.6,2512.5,0.39842]
[1729717373995,4.3480637,2512.6,2512.5,0.39842]
[1729717374392,0.39844,2512.5,2512.4,0.39843]
[1729717374587,3.93064,2512.5,2512.4,0.39843]
[1729717374795,8.46238166,2512.5,2512.4,0.39843]
[1729717376289,8.46238166,2512.5,2512.2,0.39846]
[1729717376290,0.39846,2512.3,2512.2,0.39846]
[1729717376489,0.4078,2512.4,2512.0,0.4253]
[1729717376698,0.80748,2512.2,2512.1,0.39848]
[1729717376997,5.29058042,2512.2,2512.1,0.39848]
[1729717378198,4.89210042,2512.2,2512.1,0.39848]
[1729717378395,4.89210042,2512.2,2511.8,1.4403]
[1729717378596,0.8115,2512.1,2512.0,0.3985]
[1729717378797,0.413,2512.1,2512.0,0.3985]
[1729717378990,5.20392294,2512.1,2512.0,0.3985]
[1729717379500,4.80543294,2512.1,2512.0,0.3985]
[1729717379897,8.31392294,2512.1,2512.0,0.3985]
[1729717381894,0.39852,2512.0,2511.9,0.39851]
[1729717382196,8.18682767,2512.0,2511.9,0.39851]
[1729717382601,0.39853,2511.9,2511.8,0.39852]
[1729717382800,0.39856,2511.7,2511.6,0.39856]
[1729717383009,0.39857,2511.6,2511.5,0.39858]
[1729717383305,5.84235408,2511.6,2511.5,0.39858]
[1729717385306,5.44378408,2511.6,2511.5,0.39858]
[1729717387317,5.84235408,2511.6,2511.5,0.39858]
[1729717387503,5.44378408,2511.6,2511.5,0.39858]
[1729717392905,5.84235408,2511.6,2511.5,0.39858]
[1729717393207,5.44378408,2511.6,2511.5,0.39858]
[1729717393409,5.84235408,2511.6,2511.5,0.39858]
[1729717393609,5.44378408,2511.6,2511.5,0.39858]
[1729717394206,4.60968408,2511.6,2511.5,0.39858]
[1729717394603,4.22131292,2511.7,2511.6,0.39855]
[1729717394908,0.82294,2511.8,2511.7,0.39855]
[1729717395238,4.98644764,2511.8,2511.7,0.39855]
[1729717396904,4.58790764,2511.8,2511.7,0.39855]
[1729717397904,4.16350764,2511.8,2511.7,4.38015]
[1729717398101,3.2078,2511.9,2511.8,0.39853]
[1729717399109,7.76220402,2511.9,2511.8,0.39853]
[1729717399315,7.36368402,2511.9,2511.6,0.4361]
[1729717399505,1.63525,2511.8,2511.7,0.39854]
[1729717399813,6.21983756,2511.8,2511.7,0.39854]
[1729717400442,6.21983756,2511.8,2511.7,0.52317966]
[1729717400609,6.21983756,2511.8,2511.7,0.39854]
[1729717401305,9.32983756,2511.8,2511.7,0.39854]
[1729717401513,0.39858,2511.6,2511.5,0.39856]
[1729717401808,4.63824521,2511.6,2511.5,0.5232076]
[1729717402312,4.23966521,2511.6,2511.5,0.5232076]
[1729717402607,4.63821521,2511.7,2511.6,0.39857]
[1729717402804,4.63821521,2511.7,2511.6,0.5232176]
[1729717403003,0.39855,2511.7,2511.6,0.5232176]
[1729717403204,4.39469097,2511.7,2511.6,0.39857]
[1729717403408,4.39469097,2511.7,2511.6,0.52321329]
[1729717407213,4.39469097,2511.7,2511.6,0.39857]
[1729717407420,4.39469097,2511.7,2511.6,0.52320836]
[1729717411112,4.39469097,2511.7,2511.6,0.52320737]
[1729717413016,0.39844,2512.4,2512.1,0.39849]
[1729717413224,1.233,2512.4,2512.3,0.39845]
[1729717413413,4.60483185,2512.2,2512.1,0.39847]
[1729717413615,3.50849,2512.2,2512.1,0.39847]
[1729717413823,11.24771554,2512.2,2511.8,1.04135142]
[1729717414120,3.11,2512.0,2511.6,1.56202714]
[1729717414421,0.39855,2511.7,2511.6,1.96058714]
[1729717414614,0.39855,2511.7,2511.6,2.08523103]
[1729717414815,4.55546554,2511.7,2511.6,2.08523103]
[1729717416118,4.55546554,2511.7,2511.6,0.52320389]
[1729717418332,4.55546554,2511.7,2511.6,0.52320644]
[1729717418629,4.55546554,2511.7,2511.6,0.39856]
[1729717419023,4.55546554,2511.7,2511.6,0.52320654]
[1729717421927,4.55546554,2511.7,2511.6,0.39856]
[1729717422127,4.55546554,2511.7,2511.6,0.52320685]
[1729717422724,4.55546554,2511.7,2511.6,0.12464685]
[1729717422933,4.55546554,2511.7,2511.6,0.52321685]
[1729717425434,4.55546554,2511.7,2511.6,1.76703779]
[1729717425631,4.55546554,2511.7,2511.6,1.56760238]
[1729717426327,5.99546554,2511.7,2511.6,1.76703738]
[1729717428930,7.72396554,2511.7,2511.6,1.76703738]
[1729717429167,7.72396554,2511.7,2511.6,1.76703861]
[1729717429627,7.72396554,2511.7,2511.6,0.12464728]
[1729717429628,11.30701554,2511.7,2511.6,0.12464728]
[1729717429825,0.39861,2511.3,2511.2,0.39862]
[1729717430024,1.83861,2511.3,2511.2,0.19947094]
[1729717430229,6.28173743,2511.3,2511.2,0.12466934]
[1729717430436,11.70413743,2511.3,2511.2,0.12466934]
[1729717430631,11.70413743,2511.3,2510.8,2.57557779]
[1729717430632,12.30209743,2511.3,2510.8,2.57557779]
[1729717430835,1.83866,2511.1,2511.0,0.39865]
[1729717431131,6.0435773,2511.1,2511.0,0.59812989]
[1729717431328,6.0435773,2511.1,2511.0,0.39865]
[1729717432231,7.7135773,2511.1,2511.0,0.39865]
[1729717433135,7.3149173,2511.1,2511.0,0.39865]
[1729717433732,8.9792573,2511.1,2511.0,0.39865]
[1729717433930,8.5806173,2511.1,2511.0,0.39865]
[1729717434238,8.9792573,2511.1,2511.0,0.39865]
[1729717435633,8.5806173,2511.1,2511.0,0.39865]
[1729717436230,8.9792573,2511.1,2511.0,0.39865]
[1729717437431,8.5806173,2511.1,2511.0,0.39865]
[1729717437838,8.1446173,2511.1,2511.0,0.39865]
[1729717438137,7.3149173,2511.1,2511.0,0.39865]
[1729717441736,9.7666173,2511.1,2511.0,0.39865]
[1729717442535,9.7666173,2511.1,2511.0,0.52331935]
[1729717442841,9.7666173,2511.1,2511.0,0.39865]
[1729717443031,9.7666173,2511.1,2511.0,0.5233197]
[1729717445130,2.4517,2511.1,2511.0,4.5057197]
[1729717445435,2.4517,2511.1,2511.0,6.33437584]
[1729717445641,2.4517,2511.1,2511.0,9.14165363]
[1729717446039,2.4517,2511.1,2511.0,9.14165649]
[1729717446236,1.28264548,2511.1,2511.0,9.14165649]
[1729717446533,1.28264548,2511.1,2511.0,8.81752953]
[1729717446739,1.28264548,2511.1,2511.0,9.14161899]
[1729717447929,0.8793,2511.7,2511.0,13.4941912]
[1729717448133,1.27786,2511.7,2511.6,0.39857]
[1729717448343,4.38786,2511.7,2511.6,0.39857]
[1729717448552,8.56579448,2511.7,2511.6,0.39857]
[1729717450840,8.16723448,2511.7,2511.6,0.39857]
[1729717451635,8.56578448,2511.7,2511.6,0.39857]
[1729717452246,6.89578448,2511.7,2511.6,0.39857]
[1729717452439,6.49723448,2511.7,2511.6,0.39857]
[1729717452846,6.89578448,2511.7,2511.6,0.39857]
[1729717454346,6.49723448,2511.7,2511.3,3.2078]
[1729717454646,1.44,2511.4,2511.3,3.60641]
[1729717454845,1.44,2511.4,2511.3,3.73106258]
[1729717455144,6.08475782,2511.4,2511.3,0.12465258]
[1729717455453,0.39862,2511.3,2511.2,0.39861]
[1729717455745,6.91977782,2511.3,2511.2,0.52327254]
[1729717455947,6.91977782,2511.3,2511.2,0.39861]
[1729717456148,6.52115782,2511.3,2511.2,0.39861]
[1729717456347,6.52115782,2511.3,2511.2,0.52327259]
[1729717456542,6.91976782,2511.3,2511.2,0.39861]
[1729717458342,0.39865,2511.2,2511.1,0.39863]
[1729717458649,7.45363441,2511.2,2511.1,0.12466871]
[1729717458842,7.45363441,2511.2,2510.6,3.2078]
[1729717458843,0.39871,2510.7,2510.6,3.2078]
[1729717459144,6.27728124,2510.7,2510.6,3.33248389]
[1729717459449,6.27728124,2510.7,2510.6,3.73120389]
[1729717459749,6.27728124,2510.7,2510.6,3.33248389]
[1729717459940,6.27728124,2510.7,2510.6,0.12468389]
[1729717460141,0.39872,2510.6,2510.5,0.39874]
[1729717460338,3.50872,2510.6,2510.5,0.39874]
[1729717460546,7.72524093,2510.6,2510.5,0.52343972]
[1729717461039,7.72524093,2510.6,2510.5,0.39874]
[1729717461241,7.32652093,2510.6,2510.5,0.52343825]
[1729717461442,4.21652093,2510.6,2510.5,0.39874]
[1729717461646,0.4267,2510.8,2510.5,4.10789583]
[1729717461850,0.4267,2510.8,2510.7,0.39871]
[1729717462042,0.4267,2510.8,2510.7,0.52340583]
[1729717462246,3.5367,2510.8,2510.7,0.52340583]
[1729717462569,8.18298631,2510.8,2510.7,0.39871]
[1729717462948,7.78429631,2510.8,2510.7,0.39871]
[1729717464955,8.10289631,2510.8,2510.7,0.39871]
[1729717465851,4.99289631,2510.8,2510.7,0.39871]
[1729717466054,8.10289631,2510.8,2510.7,0.52339816]
[1729717466352,8.10289631,2510.8,2510.7,0.39871]
[1729717466553,8.50158631,2510.8,2510.7,0.39871]
[1729717466857,8.10289631,2510.8,2510.7,0.39871]
[1729717467356,8.50158631,2510.8,2510.7,0.39871]
[1729717467852,8.10289631,2510.8,2510.7,0.39871]
[1729717468246,8.10289631,2510.8,2510.4,4.2148]
[1729717468450,8.50160631,2510.8,2510.7,0.39871]
[1729717470044,8.50160631,2510.8,2510.4,5.21168]
[1729717470045,8.10289631,2510.8,2510.4,3.2078]
[1729717470247,3.11,2510.5,2510.4,0.39876]
[1729717470452,3.11,2510.5,2510.4,0.52345461]
[1729717470755,9.50468252,2510.5,2510.4,0.52345461]
[1729717470952,9.50468252,2510.5,2510.4,0.39876]
[1729717473055,9.82328252,2510.5,2510.4,0.39876]
[1729717477554,9.42454252,2510.5,2510.4,0.39876]
[1729717477757,9.82328252,2510.5,2510.4,0.39876]
[1729717480462,8.15328252,2510.5,2510.4,0.39876]
[1729717481765,0.39877,2510.4,2510.3,0.39876]
[1729717481961,0.83427,2510.4,2510.3,0.39876]
[1729717482263,5.08392526,2510.4,2510.3,0.39876]
[1729717482458,0.39879,2510.2,2510.1,3.6066]
[1729717482861,4.64844526,2510.2,2510.1,3.6066]
[1729717483666,4.64844526,2510.2,2510.1,0.3988]
[1729717485169,4.24965526,2510.2,2510.1,0.3988]
[1729717485503,4.33516823,2510.3,2510.0,0.8452]
[1729717485763,4.04207,2510.4,2510.0,1.84223]
[1729717485968,0.39879,2510.3,2510.2,0.39878]
[1729717486170,4.73395823,2510.3,2510.2,0.39878]
[1729717489261,4.33516823,2510.3,2510.2,0.39878]
[1729717489692,4.73393823,2510.3,2510.2,0.39878]
[1729717490561,5.05253823,2510.3,2510.2,0.39878]
[1729717491573,5.32793823,2510.3,2510.2,0.39878]
[1729717491869,4.92916823,2510.3,2510.2,0.39878]
[1729717497972,5.92496823,2510.3,2510.2,0.39878]
[1729717500367,5.92496823,2510.3,2510.2,4.50748775]
[1729717500670,1.5898,2510.3,2510.2,8.13608775]
[1729717501192,1.5898,2510.3,2510.2,8.1360789]
[1729717502176,1.5898,2510.3,2510.2,9.1400789]
[1729717502474,1.5898,2510.3,2510.2,9.33959511]
[1729717503283,1.5898,2510.3,2510.2,9.1400789]
[1729717503572,1.5898,2510.3,2510.2,9.33959978]
[1729717504279,1.5898,2510.3,2510.2,10.9703525]
[1729717504678,1.5898,2510.3,2510.2,10.64613272]
[1729717504868,1.5898,2510.3,2510.2,10.97034461]
[1729717505171,1.5898,2510.3,2510.2,10.77082957]
[1729717505579,1.5898,2510.3,2510.2,10.97034453]
[1729717505770,1.5898,2510.3,2510.2,12.53599445]
[1729717506775,1.5898,2510.3,2510.2,10.97034453]
[1729717507181,1.5898,2510.3,2510.2,10.97049571]
[1729717507572,1.5898,2510.3,2510.2,7.76269571]
[1729717507777,1.5898,2510.3,2510.2,10.97049571]
[1729717508506,1.5898,2510.3,2510.2,12.21193382]
[1729717508778,1.5898,2510.3,2510.2,5.5616935]
[1729717508983,5.82284125,2510.3,2510.2,3.9307896]
[1729717509688,7.04794125,2510.3,2510.2,3.9307896]
[1729717511581,7.04794125,2510.3,2510.2,5.56228158]
[1729717511775,6.63374125,2510.3,2510.2,5.56228158]